bitfinex/quotes_BTCUSD_20250218
["timestamp","ask_amount","ask_price","bid_price","bid_amount"]
[1739889381486,7.06156865,96253.0,96252.0,0.01455376]
[1739889381685,6.83636165,96253.0,96252.0,0.01455376]
[1739889382021,6.88388585,96253.0,96252.0,0.01455376]
[1739889382221,4.87999985,96253.0,96252.0,0.01455376]
[1739889382610,4.87999985,96253.0,96252.0,0.01655376]
[1739889383019,4.66013485,96253.0,96252.0,0.01655376]
[1739889383920,2.66596485,96253.0,96252.0,0.01655376]
[1739889384355,2.63067685,96253.0,96252.0,0.01655376]
[1739889384562,2.7331805,96253.0,96252.0,0.01655376]
[1739889384762,2.75248234,96253.0,96252.0,0.01655376]
[1739889385285,1.96590969,96253.0,96252.0,0.01655376]
[1739889385511,1.95571669,96253.0,96252.0,0.01455376]
[1739889386014,1.95571669,96253.0,96252.0,0.01655376]
[1739889386213,1.95571669,96253.0,96252.0,0.01455376]
[1739889386613,1.95971669,96253.0,96252.0,0.01455376]
[1739889386816,2.06222034,96253.0,96252.0,0.01455376]
[1739889387229,2.09376539,96253.0,96252.0,0.01455376]
[1739889387611,2.07748019,96253.0,96252.0,0.01455376]
[1739889387794,2.13136749,96253.0,96252.0,0.01455376]
[1739889388035,2.09982244,96253.0,96252.0,0.01455376]
[1739889388488,2.13136749,96253.0,96252.0,0.01455376]
[1739889388619,2.12736749,96253.0,96252.0,0.01455376]
[1739889389025,2.09982244,96253.0,96252.0,0.01455376]
[1739889389245,0.305873,96232.0,96220.0,0.000167]
[1739889389444,3.58339365,96232.0,96231.0,0.00083583]
[1739889389787,2.57890865,96232.0,96231.0,0.00083583]
[1739889389989,2.19751265,96232.0,96231.0,0.00083583]
[1739889390198,2.04163965,96232.0,96231.0,0.00083583]
[1739889390404,0.21807923,96250.0,96231.0,0.00083583]
[1739889390625,4.03674065,96249.0,96231.0,0.00083583]
[1739889390829,0.01628806,96246.0,96244.0,0.155852]
[1739889391032,0.01628806,96246.0,96244.0,0.155853]
[1739889391237,0.15585,96246.0,96245.0,0.00904751]
[1739889391439,1.239668,96246.0,96245.0,0.00904751]
[1739889391647,0.155873,96232.0,96231.0,0.00083583]
[1739889391913,2.64360065,96232.0,96231.0,0.00083583]
[1739889392127,4.42678065,96232.0,96231.0,0.00990031]
[1739889392310,4.70306865,96232.0,96231.0,0.00083583]
[1739889392548,5.5215993,96232.0,96231.0,0.00083583]
[1739889392757,4.138394,96232.0,96231.0,0.00083583]
[1739889392979,0.25250365,96246.0,96231.0,0.00083583]
[1739889392980,0.15,96246.0,96231.0,0.00083583]
[1739889393211,0.155863,96239.0,96231.0,0.00100623]
[1739889393419,0.118561,96238.0,96232.0,0.155873]
[1739889393569,0.21807923,96250.0,96237.0,0.155865]
[1739889393773,0.21807923,96250.0,96232.0,0.207831]
[1739889393774,0.0003408,96272.0,96238.0,0.009056]
[1739889393938,0.0003408,96272.0,96240.0,0.207813]
[1739889394143,0.1052,96271.0,96242.0,0.0803]
[1739889394338,0.225644,96271.0,96243.0,0.11259243]
[1739889394564,0.0003408,96272.0,96244.0,0.207805]
[1739889394766,0.30710591,96271.0,96245.0,0.11258822]
[1739889394972,0.01930191,96271.0,96246.0,0.2078]
[1739889395185,0.151836,96270.0,96268.0,0.155814]
[1739889395393,0.151836,96270.0,96269.0,0.00900897]
[1739889395590,0.151836,96270.0,96266.0,0.155817]
[1739889395803,0.151836,96270.0,96267.0,0.00901139]
[1739889396004,0.151836,96270.0,96268.0,0.155813]
[1739889396204,0.151836,96270.0,96269.0,0.00900897]
[1739889396405,0.441282,96270.0,96269.0,0.0001313]
[1739889396739,0.343584,96270.0,96269.0,0.0001313]
[1739889396954,0.01930191,96271.0,96270.0,0.155811]
[1739889397203,0.0003408,96272.0,96270.0,0.25935319]
[1739889397327,0.0003408,96272.0,96271.0,0.10250365]
[1739889397529,0.0003408,96272.0,96271.0,0.00819251]
[1739889397773,0.0003408,96272.0,96270.0,0.155811]
[1739889398009,0.0003408,96272.0,96271.0,0.00818574]
[1739889398402,0.0003408,96272.0,96271.0,0.10872801]
[1739889398553,0.0003408,96272.0,96271.0,0.10768939]
[1739889398753,0.0003408,96272.0,96271.0,0.00788574]
[1739889398754,0.01965104,96272.0,96271.0,0.00788574]
[1739889398962,0.01965104,96272.0,96270.0,0.155811]
[1739889399159,0.01965104,96272.0,96271.0,0.00788574]
[1739889399655,60.0,96837.0,96271.0,0.00788574]
[1739889399656,0.207678,96303.0,96271.0,0.01088574]
[1739889399953,3.85553865,96302.0,96271.0,0.00788574]
[1739889400157,0.21807923,96300.0,96269.0,0.1265313]
[1739889400357,0.21807923,96290.0,96270.0,0.155811]
[1739889400581,0.21807923,96290.0,96269.0,0.1265313]
[1739889400582,3.75024408,96289.0,96271.0,0.00788514]
[1739889400817,3.650681,96288.0,96269.0,0.2823433]
[1739889401014,0.00077308,96287.0,96269.0,0.1265313]
[1739889401218,6.55588,96286.0,96271.0,0.001]
[1739889401424,0.10250365,96288.0,96271.0,0.001]
[1739889401425,3.282698,96285.0,96271.0,0.001]
[1739889401625,0.21807923,96310.0,96272.0,0.0010387]
[1739889401834,0.155761,96302.0,96273.0,0.10250365]
[1739889402033,0.251947,96301.0,96290.0,0.155779]
[1739889402189,0.15,96300.0,96273.0,0.10250365]
[1739889402389,0.155767,96298.0,96273.0,0.10250365]
[1739889402597,0.15,96305.0,96273.0,0.10250365]
[1739889402820,0.004,96289.0,96288.0,0.155782]
[1739889403274,0.004,96289.0,96288.0,0.16374374]
[1739889403500,0.004,96289.0,96288.0,0.24594374]
[1739889403702,0.03122,96312.0,96288.0,0.24594374]
[1739889403703,0.15,96309.0,96288.0,0.09016174]
[1739889403902,0.15,96307.0,96288.0,0.09016174]
[1739889404130,2.51562765,96306.0,96288.0,0.0822]
[1739889404467,4.927022,96305.0,96292.0,0.155776]
[1739889404670,0.15,96307.0,96292.0,0.155776]
[1739889404671,0.155762,96301.0,96292.0,0.155776]
[1739889404873,0.155766,96298.0,96289.0,0.155779]
[1739889405085,0.155766,96298.0,96288.0,0.0822]
[1739889405086,0.529899,96297.0,96288.0,0.0822]
[1739889405295,0.20750666,96297.0,96290.0,0.00795491]
[1739889405441,1.401244,96296.0,96289.0,0.00795588]
[1739889405653,0.00077308,96295.0,96289.0,0.00795588]
[1739889405859,0.155781,96289.0,96276.0,0.076]
[1739889406057,0.474965,96288.0,96276.0,0.076]
[1739889406264,0.336378,96287.0,96279.0,0.155797]
[1739889406469,0.326427,96289.0,96276.0,0.076]
[1739889406670,0.229293,96290.0,96280.0,0.00794818]
[1739889406883,0.21807923,96320.0,96281.0,0.00103857]
[1739889407145,0.001,96295.0,96282.0,0.10250365]
[1739889407319,0.001,96295.0,96283.0,0.00103844]
[1739889407574,0.15,96315.0,96283.0,0.00794712]
[1739889407784,0.155759,96303.0,96292.0,0.155776]
[1739889407987,0.288462,96302.0,96295.0,0.155771]
[1739889408194,0.831578,96304.0,96283.0,0.10250365]
[1739889408422,0.155768,96297.0,96296.0,0.00793528]
[1739889408628,0.155772,96295.0,96285.0,0.155787]
[1739889408842,0.02080078,96304.0,96279.0,0.002]
[1739889409050,2.881689,96303.0,96277.0,0.207733]
[1739889409254,1.027535,96302.0,96280.0,0.00795077]
[1739889409446,1.493375,96303.0,96280.0,0.10250365]
[1739889409654,0.973098,96303.0,96281.0,0.10250365]
[1739889409835,0.0003408,96305.0,96282.0,0.023]
[1739889410042,0.003,96304.0,96283.0,0.10250365]
[1739889410246,0.0003408,96305.0,96283.0,0.11094472]
[1739889410447,0.0003408,96305.0,96299.0,0.155763]
[1739889410667,0.0003408,96305.0,96283.0,0.11094472]
[1739889410899,0.155761,96301.0,96300.0,0.0084246]
[1739889411109,2.873106,96301.0,96290.0,0.155779]
[1739889411322,2.57093147,96300.0,96276.0,0.076]
[1739889411529,1.47091508,96299.0,96276.0,0.076]
[1739889411736,0.724955,96298.0,96276.0,0.17863495]
[1739889411949,0.003,96302.0,96301.0,0.155761]
[1739889412369,0.003,96302.0,96301.0,0.34922707]
[1739889412569,0.0003408,96305.0,96301.0,0.08992412]
[1739889412981,0.003,96304.0,96301.0,0.08992412]
[1739889413187,0.003,96304.0,96303.0,0.155758]
[1739889413360,0.003,96304.0,96303.0,0.153758]
[1739889413581,0.003,96304.0,96303.0,0.16217821]
[1739889413815,0.0003408,96305.0,96304.0,0.155756]
[1739889414082,0.0003408,96305.0,96304.0,0.16417524]
[1739889414515,0.0003408,96305.0,96304.0,0.00841924]
[1739889414722,0.0003408,96305.0,96304.0,0.16417524]
[1739889414903,0.0003408,96305.0,96304.0,0.155756]
[1739889415106,0.0003408,96305.0,96304.0,0.2666748]
[1739889416812,0.0003408,96305.0,96304.0,0.2896748]
[1739889417143,0.0003408,96305.0,96304.0,0.3861748]
[1739889417904,0.01627454,96334.0,96304.0,0.3861748]
[1739889417905,0.01627454,96334.0,96333.0,0.155709]
[1739889418116,0.01627454,96334.0,96333.0,0.237509]
[1739889418260,0.207554,96361.0,96334.0,0.0487]
[1739889418445,0.362038,96346.0,96336.0,0.155704]
[1739889418691,0.21807923,96360.0,96333.0,0.2977948]
[1739889418692,0.298072,96345.0,96335.0,0.00837006]
[1739889418899,0.21807923,96350.0,96333.0,0.0818]
[1739889418900,0.155695,96343.0,96337.0,0.00836812]
[1739889419103,0.207567,96355.0,96337.0,0.0001313]
[1739889419305,0.203293,96346.0,96338.0,0.00836716]
[1739889419672,0.358981,96346.0,96338.0,0.00836716]
[1739889419905,0.375992,96345.0,96337.0,0.0001313]
[1739889420107,0.155698,96340.0,96339.0,0.00836619]
[1739889420306,0.855962,96340.0,96338.0,0.00836716]
[1739889420535,0.155696,96342.0,96337.0,0.0001313]
[1739889420756,0.004,96343.0,96337.0,0.0001313]
[1739889420757,0.155701,96338.0,96337.0,0.0001313]
[1739889420986,0.30729,96338.0,96337.0,0.0001313]
[1739889421376,0.155701,96338.0,96337.0,0.0001313]
[1739889421583,4.94245808,96338.0,96337.0,0.0001313]
[1739889421797,4.329386,96338.0,96337.0,0.0001313]
[1739889422055,3.786887,96338.0,96337.0,0.0001313]
[1739889422308,3.717001,96338.0,96337.0,0.0001313]
[1739889422670,0.160701,96338.0,96337.0,0.0001313]
[1739889422871,6.370235,96338.0,96337.0,0.0001313]
[1739889423071,6.390417,96338.0,96337.0,0.0001313]
[1739889423340,6.394417,96338.0,96337.0,0.0001313]
[1739889423903,6.09857658,96338.0,96337.0,0.0001313]
[1739889424107,6.63682993,96338.0,96337.0,3e-07]
[1739889424307,6.63682993,96338.0,96292.0,0.0001703]
[1739889424308,0.155774,96293.0,96292.0,0.0001703]
[1739889424654,1.320079,96293.0,96292.0,0.00030175]
[1739889424861,2.363301,96293.0,96292.0,0.00030175]
[1739889425071,5.55572759,96293.0,96292.0,0.00030175]
[1739889425278,5.51292624,96293.0,96292.0,0.00030175]
[1739889425910,5.4134923,96293.0,96292.0,0.00030175]
[1739889426156,0.15,96269.0,96245.0,0.0789]
[1739889426363,0.15,96267.0,96245.0,0.07903175]
[1739889426589,0.155849,96247.0,96246.0,0.00763591]
[1739889426794,0.155849,96247.0,96245.0,0.00013175]
[1739889426998,0.818612,96246.0,96245.0,0.00013175]
[1739889427199,0.636029,96246.0,96245.0,0.00013175]
[1739889427418,0.621962,96246.0,96245.0,0.00113175]
[1739889427823,0.777812,96246.0,96245.0,0.00113175]
[1739889428026,1.67264,96246.0,96245.0,0.00113175]
[1739889428230,3.25159,96246.0,96245.0,0.00113175]
[1739889428434,4.987397,96246.0,96245.0,0.00113175]
[1739889428644,4.330152,96246.0,96245.0,0.00113175]
[1739889428841,0.23436397,96260.0,96245.0,0.00113175]
[1739889428842,0.01628474,96260.0,96245.0,0.00113175]
[1739889429018,1.17525284,96259.0,96245.0,0.00013175]
[1739889429219,0.622414,96258.0,96245.0,0.00013175]
[1739889429421,0.01930897,96246.0,96245.0,0.00030205]
[1739889430382,0.01930897,96246.0,96245.0,0.00923978]
[1739889430753,0.79548097,96246.0,96245.0,0.00030205]
[1739889431119,0.555447,96246.0,96245.0,0.00030205]
[1739889431706,0.705447,96246.0,96245.0,0.00030205]
[1739889431919,0.80795065,96246.0,96245.0,0.00030205]
[1739889432271,1.23209465,96246.0,96245.0,0.00030205]
[1739889432489,1.01637565,96246.0,96245.0,0.00030205]
[1739889432696,1.1188793,96246.0,96245.0,0.00030205]
[1739889433202,1.1208793,96246.0,96245.0,0.00030205]
[1739889433610,1.14015401,96246.0,96245.0,0.00030205]
[1739889433994,1.14015401,96246.0,96245.0,5e-08]
[1739889434196,0.40782706,96246.0,96245.0,5e-08]
[1739889434423,0.305858,96241.0,96240.0,3.5e-07]
[1739889434631,0.54241035,96241.0,96240.0,0.00043618]
[1739889434824,0.69371035,96241.0,96240.0,1.8e-07]
[1739889435025,0.305873,96232.0,96231.0,0.0005704]
[1739889435288,4.89441565,96232.0,96231.0,0.0005704]
[1739889435430,8.01571335,96232.0,96231.0,0.0005704]
[1739889435628,8.09442135,96232.0,96231.0,0.0005704]
[1739889436281,8.11742135,96232.0,96231.0,4e-07]
[1739889436487,0.56542535,96232.0,96231.0,4e-07]
[1739889436694,0.56542535,96232.0,96220.0,0.000167]
[1739889436695,0.305891,96221.0,96220.0,0.000167]
[1739889436903,0.4629397,96221.0,96220.0,0.000167]
[1739889437112,9.6797207,96221.0,96220.0,0.000167]
[1739889437325,9.66446937,96221.0,96220.0,0.000167]
[1739889437528,6.42823537,96221.0,96220.0,0.000167]
[1739889437729,6.37707074,96221.0,96220.0,0.000167]
[1739889437947,2.10238237,96221.0,96220.0,0.000167]
[1739889438354,1.3499444,96221.0,96220.0,0.000167]
[1739889438773,0.21467461,96221.0,96220.0,0.156059]
[1739889438855,0.06666889,96221.0,96220.0,0.156059]
[1739889439321,0.06666889,96221.0,96220.0,0.16507032]
[1739889439439,0.00961086,96221.0,96220.0,0.16507032]
[1739889439845,0.00961086,96221.0,96220.0,0.26757397]
[1739889440072,0.03078332,96239.0,96238.0,0.155863]
[1739889440451,0.03078332,96239.0,96238.0,0.34968424]
[1739889440682,0.03078332,96239.0,96238.0,0.37164523]
[1739889441523,0.00043624,96241.0,96240.0,0.15586]
[1739889441726,0.00043624,96241.0,96240.0,0.28136365]
[1739889441947,0.00043624,96241.0,96240.0,0.00895484]
[1739889442156,0.00043624,96241.0,96240.0,0.11145849]
[1739889442365,0.00043624,96241.0,96240.0,0.13549741]
[1739889442583,0.00043624,96241.0,96240.0,0.13549725]
[1739889442795,0.00043624,96241.0,96240.0,0.13445849]
[1739889443001,0.00043624,96241.0,96240.0,0.28549726]
[1739889443216,0.00143624,96241.0,96240.0,0.30645849]
[1739889443411,0.01917464,96263.0,96262.0,0.155824]
[1739889443619,0.01917464,96263.0,96262.0,0.16542611]
[1739889444600,0.01917464,96263.0,96262.0,0.26896846]
[1739889444802,0.01917464,96263.0,96262.0,0.37322976]
[1739889444947,0.0306865,96284.0,96283.0,0.15579]
[1739889445167,0.03078332,96304.0,96301.0,0.15576]
[1739889445368,0.18654032,96304.0,96295.0,0.15577]
[1739889445576,0.03078332,96304.0,96302.0,0.16517214]
[1739889445780,0.03078332,96304.0,96302.0,0.155759]
[1739889446192,0.03078332,96304.0,96303.0,0.11191558]
[1739889446440,0.03078332,96304.0,96303.0,0.11204738]
[1739889446852,0.03478332,96304.0,96303.0,0.11204738]
[1739889447055,0.09268882,96339.0,96303.0,0.11204738]
[1739889447262,0.155713,96331.0,96303.0,0.11204738]
[1739889447429,0.15,96336.0,96303.0,0.11304738]
[1739889447608,0.09268882,96339.0,96304.0,0.23171317]
[1739889447810,0.155705,96336.0,96325.0,0.155721]
[1739889448019,0.24838982,96339.0,96306.0,0.00103807]
[1739889448217,0.09268882,96339.0,96307.0,0.19499481]
[1739889448458,0.24838882,96339.0,96308.0,0.00103804]
[1739889448636,0.24838882,96339.0,96307.0,0.19499481]
[1739889448637,0.09268882,96339.0,96309.0,0.11292866]
[1739889448853,0.09268882,96339.0,96329.0,0.155714]
[1739889449051,0.007,96336.0,96330.0,0.00936157]
[1739889449260,0.15,96340.0,96309.0,0.10250365]
[1739889449467,0.15,96340.0,96331.0,0.155712]
[1739889449670,0.007341,96338.0,96322.0,0.207636]
[1739889449885,0.000341,96338.0,96332.0,0.00935915]
[1739889450117,0.155705,96336.0,96325.0,0.155721]
[1739889450335,0.005,96336.0,96309.0,0.10250365]
[1739889450539,0.005,96336.0,96329.0,0.155716]
[1739889450746,1.075942,96335.0,96309.0,0.10250365]
[1739889450945,0.545627,96334.0,96330.0,0.00936157]
[1739889451152,0.005,96336.0,96329.0,0.155716]
[1739889451398,0.005,96336.0,96325.0,0.155722]
[1739889451563,0.15,96331.0,96330.0,0.0093135]
[1739889451770,5.60333773,96331.0,96322.0,0.001]
[1739889451976,0.155726,96323.0,96322.0,0.001]
[1739889452208,0.155733,96319.0,96309.0,0.0001318]
[1739889452404,1.318795,96318.0,96309.0,0.0001318]
[1739889452634,1.143085,96318.0,96309.0,0.0001318]
[1739889452839,0.155746,96311.0,96309.0,0.0001318]
[1739889453154,0.379996,96310.0,96309.0,0.0001318]
[1739889453365,0.10250365,96330.0,96309.0,0.0001318]
[1739889453570,0.15,96328.0,96309.0,0.0001318]
[1739889453774,0.15,96333.0,96309.0,0.0001318]
[1739889453775,0.15,96319.0,96309.0,0.0001318]
[1739889453980,0.155747,96310.0,96309.0,0.0001318]
[1739889454160,1.959747,96310.0,96309.0,0.0001318]
[1739889454360,1.85599,96310.0,96309.0,0.0001318]
[1739889454603,1.728276,96310.0,96309.0,0.0001318]
[1739889454960,1.547255,96310.0,96309.0,0.0001318]
[1739889455161,1.547255,96310.0,96309.0,0.0031318]
[1739889455162,1.62486965,96310.0,96309.0,0.0031318]
[1739889455364,1.77486965,96310.0,96309.0,0.0031318]
[1739889455570,1.77521065,96310.0,96309.0,0.0001318]
[1739889455769,1.77521065,96310.0,96309.0,0.0021318]
[1739889456374,1.673707,96310.0,96309.0,0.0001318]
[1739889456581,0.896553,96310.0,96309.0,0.0001318]
[1739889456757,0.000341,96310.0,96309.0,0.0001318]
[1739889456979,0.156088,96310.0,96309.0,0.0001318]
[1739889457485,0.25859165,96310.0,96309.0,0.0001318]
[1739889457723,2.4581713,96310.0,96309.0,0.0001318]
[1739889458131,2.35566765,96310.0,96309.0,0.0001318]
[1739889458341,2.253164,96310.0,96309.0,0.0001318]
[1739889458570,2.26944156,96310.0,96309.0,0.0001318]
[1739889458779,2.37194521,96310.0,96309.0,0.0001318]
[1739889459201,2.3901531,96310.0,96309.0,0.0001318]
[1739889459402,1.13752545,96310.0,96309.0,0.0031318]
[1739889459605,0.80867445,96310.0,96309.0,0.0031318]
[1739889459783,0.80867445,96310.0,96309.0,0.0001318]
[1739889460221,0.02254889,96310.0,96309.0,0.1558798]
[1739889460663,0.02254889,96310.0,96309.0,0.1668113]
[1739889460869,0.003341,96310.0,96309.0,0.0110633]
[1739889461078,0.003341,96310.0,96309.0,0.0001318]
[1739889461279,0.003341,96310.0,96309.0,0.0110633]
[1739889461482,0.003341,96310.0,96309.0,0.0001318]
[1739889461949,0.003341,96310.0,96309.0,0.1558798]
[1739889462360,0.003341,96310.0,96309.0,0.01104955]
[1739889462991,0.000341,96310.0,96309.0,0.01104955]
[1739889463373,0.000341,96310.0,96309.0,0.01404955]
[1739889463582,0.000341,96310.0,96309.0,0.0031318]
[1739889463755,0.000341,96310.0,96309.0,0.01404737]
[1739889463961,0.000341,96310.0,96309.0,0.0031318]
[1739889464217,0.000341,96310.0,96309.0,0.01404737]
[1739889464367,0.000341,96310.0,96309.0,0.0031318]
[1739889464568,0.000341,96310.0,96309.0,0.01404902]
[1739889464797,0.000341,96310.0,96309.0,0.0031318]
[1739889465000,0.000341,96310.0,96309.0,0.01404444]
[1739889465171,0.000341,96310.0,96309.0,0.1588798]
[1739889465544,0.000341,96310.0,96309.0,0.01404465]
[1739889466997,0.000341,96310.0,96309.0,0.0031318]
[1739889467202,0.000341,96310.0,96309.0,0.0140434]
[1739889467416,0.000341,96310.0,96309.0,0.0031318]
[1739889467821,0.000341,96310.0,96309.0,0.0140434]
[1739889468050,0.000341,96310.0,96309.0,0.0031318]
[1739889468159,0.000341,96310.0,96309.0,0.0140434]
[1739889468362,0.000341,96310.0,96309.0,0.0031318]
[1739889468363,0.1924606,96310.0,96309.0,0.0031318]
[1739889468575,0.463071,96310.0,96309.0,0.0031318]
[1739889468779,1.46221165,96310.0,96309.0,0.0031318]
[1739889468985,1.28531,96310.0,96309.0,0.0031318]
[1739889469223,0.000341,96310.0,96309.0,0.0031318]
[1739889469635,0.000341,96310.0,96309.0,0.01104904]
[1739889469836,1.50434,96310.0,96309.0,0.0001318]
[1739889470047,0.936471,96310.0,96309.0,0.0001318]
[1739889470254,0.155747,96310.0,96309.0,0.0001318]
[1739889470483,4.465758,96310.0,96309.0,0.0031318]
[1739889470893,4.465758,96310.0,96309.0,0.0001318]
[1739889471560,4.285315,96310.0,96309.0,0.0001318]
[1739889472321,0.305753,96306.0,96305.0,1e-07]
[1739889472531,0.155832,96258.0,96254.0,0.0805]
[1739889472766,0.21783774,96260.0,96249.0,0.0458]
[1739889472983,0.155821,96264.0,96255.0,0.01100312]
[1739889473185,0.943361,96263.0,96249.0,0.0458]
[1739889473389,0.870998,96265.0,96249.0,0.0458]
[1739889473597,0.155829,96260.0,96250.0,0.01101119]
[1739889473806,0.674264,96259.0,96249.0,0.0458]
[1739889474014,0.00013087,96260.0,96259.0,0.155829]
[1739889474232,0.00013087,96260.0,96259.0,0.01104842]
[1739889474442,0.00013087,96260.0,96255.0,0.155835]
[1739889474641,0.00013087,96260.0,96256.0,0.01105327]
[1739889474856,0.00013087,96260.0,96250.0,0.10250365]
[1739889475071,0.00013087,96260.0,96259.0,0.155829]
[1739889475274,0.00013087,96260.0,96259.0,0.16687746]
[1739889475719,0.00013087,96260.0,96259.0,0.16791624]
[1739889475925,0.00013087,96260.0,96259.0,0.34711981]
[1739889476179,0.00013087,96260.0,96259.0,0.34608111]
[1739889476978,0.00013087,96260.0,96259.0,0.49608111]
[1739889477187,0.00113087,96260.0,96259.0,0.49608111]
[1739889477399,0.00013087,96260.0,96259.0,0.51608111]
[1739889477601,0.00013087,96260.0,96259.0,0.55908111]
[1739889477807,0.00113087,96260.0,96259.0,0.55908111]
[1739889478650,0.00013087,96260.0,96259.0,0.55908111]
[1739889478874,0.00113087,96260.0,96259.0,0.51608111]
[1739889480128,0.00113087,96260.0,96259.0,0.34608111]
[1739889480972,0.00113087,96260.0,96259.0,0.34625141]
[1739889481188,0.00013087,96260.0,96259.0,0.34625141]
[1739889481394,0.00113087,96260.0,96259.0,0.19042241]
[1739889481768,0.00113087,96260.0,96259.0,0.34625141]
[1739889481995,0.00213087,96260.0,96259.0,0.34625141]
[1739889482201,0.00213087,96260.0,96259.0,0.49625141]
[1739889482810,8.7e-07,96260.0,96259.0,0.57157363]
[1739889483013,0.0003406,96310.0,96272.0,0.15]
[1739889483216,0.21831042,96310.0,96298.0,0.155765]
[1739889483364,0.544845,96309.0,96276.0,0.00103836]
[1739889483574,0.231259,96309.0,96299.0,0.01096225]
[1739889483775,0.231259,96309.0,96283.0,0.20772]
[1739889483776,0.00047268,96310.0,96284.0,0.00103832]
[1739889483988,0.21831042,96310.0,96285.0,0.10250365]
[1739889484186,0.766478,96309.0,96285.0,0.11347727]
[1739889484364,0.676997,96309.0,96292.0,0.155776]
[1739889484572,0.478562,96309.0,96285.0,0.11347727]
[1739889484786,0.126212,96309.0,96285.0,0.10250365]
[1739889484983,0.003,96309.0,96308.0,0.15575]
[1739889485188,0.00047268,96310.0,96309.0,0.155748]
[1739889485435,0.00047268,96310.0,96308.0,0.0109325]
[1739889485682,0.00047268,96310.0,96306.0,0.207669]
[1739889485683,0.00047268,96310.0,96309.0,0.16367889]
[1739889485834,0.00047268,96310.0,96309.0,0.16617889]
[1739889486032,0.00047268,96310.0,96309.0,0.01043089]
[1739889486248,0.15621968,96310.0,96309.0,0.01043089]
[1739889486435,0.03763363,96310.0,96287.0,0.076]
[1739889486650,0.207686,96299.0,96276.0,0.0804]
[1739889486822,0.21783774,96290.0,96277.0,0.01047587]
[1739889487025,0.98381,96289.0,96277.0,0.01047587]
[1739889487229,0.155798,96278.0,96277.0,0.01047587]
[1739889487431,0.15,96277.0,96253.0,0.0762]
[1739889487639,0.155826,96261.0,96260.0,0.09166614]
[1739889487842,0.951272,96262.0,96260.0,0.09166614]
[1739889488067,0.15,96268.0,96260.0,0.09166614]
[1739889488284,0.0793,96296.0,96260.0,0.09166614]
[1739889488601,0.258563,96279.0,96277.0,0.004]
[1739889488813,0.102766,96279.0,96260.0,0.09166614]
[1739889489016,0.155825,96262.0,96260.0,0.09166614]
[1739889489126,0.362406,96261.0,96260.0,0.09166614]
[1739889489359,0.66376,96261.0,96260.0,0.09166614]
[1739889489778,0.91626365,96261.0,96260.0,0.09166614]
[1739889489982,1.0187673,96261.0,96260.0,0.09166614]
[1739889490184,0.305827,96260.0,96259.0,0.0001703]
[1739889490359,7.72312965,96260.0,96259.0,0.0001703]
[1739889490562,6.87578165,96260.0,96259.0,3e-07]
[1739889490775,0.43133065,96260.0,96259.0,3e-07]
[1739889490977,0.53900339,96260.0,96259.0,3e-07]
[1739889491742,0.305873,96232.0,96220.0,0.0003375]
[1739889491950,0.40837665,96232.0,96231.0,0.00060674]
[1739889492160,1.72768165,96232.0,96231.0,0.00060674]
[1739889492315,0.252217,96232.0,96231.0,0.00060674]
[1739889492491,0.01628886,96243.0,96231.0,0.00060674]
[1739889492691,0.155872,96233.0,96231.0,0.00060674]
[1739889492893,0.83047165,96232.0,96231.0,0.00060674]
[1739889493102,1.01684125,96232.0,96231.0,0.00060674]
[1739889493496,1.03984125,96232.0,96231.0,0.00060674]
[1739889494063,1.00347165,96232.0,96231.0,0.00060674]
[1739889494271,0.98047165,96232.0,96231.0,0.00060674]
[1739889495021,0.625966,96232.0,96231.0,0.00060674]
[1739889495213,0.151,96232.0,96231.0,0.00060674]
[1739889495444,0.001,96232.0,96231.0,0.00060674]
[1739889495667,0.148373,96232.0,96231.0,0.00060674]
[1739889495839,0.001,96232.0,96231.0,0.00060674]
[1739889496832,0.001,96232.0,96231.0,0.01125507]
[1739889497019,1.07195065,96232.0,96231.0,0.00060674]
[1739889497159,2.7909743,96232.0,96231.0,0.01125465]
[1739889497357,3.8156203,96232.0,96231.0,0.00060674]
[1739889497564,2.61574165,96232.0,96231.0,0.00060674]
[1739889497761,0.959683,96232.0,96231.0,0.00060674]
[1739889497978,0.001,96232.0,96231.0,0.00060674]
[1739889498185,0.15,96249.0,96231.0,0.00060674]
[1739889498403,0.0479,96270.0,96231.0,0.00060674]
[1739889498404,0.207781,96255.0,96231.0,0.0112477]
[1739889498603,0.207781,96255.0,96231.0,0.00060674]
[1739889498604,0.21783774,96250.0,96231.0,0.00060674]
[1739889498804,0.155872,96233.0,96231.0,0.00060674]
[1739889499012,0.155868,96235.0,96231.0,0.00060674]
[1739889499206,0.21783774,96241.0,96231.0,0.00060674]
[1739889499468,0.01628727,96252.0,96241.0,0.207811]
[1739889499665,0.01628727,96252.0,96231.0,0.00060674]
[1739889499666,0.207816,96239.0,96231.0,0.00060674]
[1739889500213,0.155862,96239.0,96231.0,0.00060674]
[1739889500422,0.155864,96238.0,96231.0,0.00060674]
[1739889500635,0.155871,96233.0,96231.0,0.00060674]
[1739889500847,0.10250365,96251.0,96231.0,0.00060674]
[1739889501051,0.01628727,96252.0,96251.0,0.155842]
[1739889501052,0.004,96252.0,96251.0,0.155842]
[1739889501269,0.207738,96275.0,96258.0,0.15583]
[1739889501480,0.20604,96280.0,96258.0,0.15583]
[1739889501481,0.21783774,96270.0,96258.0,0.15583]
[1739889501689,0.01628563,96278.0,96259.0,0.155829]
[1739889502358,0.2308775,96290.0,96259.0,0.34184819]
[1739889502359,0.21783774,96290.0,96259.0,0.34184819]
[1739889502565,0.21783774,96290.0,96259.0,0.34080941]
[1739889502779,0.15,96286.0,96259.0,0.34080941]
[1739889503399,0.305786,96286.0,96259.0,0.33980941]
[1739889503606,0.15,96286.0,96259.0,0.33980941]
[1739889504013,0.15,96288.0,96259.0,0.33980941]
[1739889504224,0.37361674,96290.0,96259.0,0.33980941]
[1739889504445,0.21783774,96290.0,96259.0,0.33980941]
[1739889505089,0.15,96296.0,96259.0,0.33980941]
[1739889505321,0.15,96296.0,96259.0,0.34444153]
[1739889505530,0.15,96291.0,96259.0,0.34153488]
[1739889505770,0.15,96291.0,96259.0,0.39063488]
[1739889505977,0.207665,96309.0,96259.0,0.54063488]
[1739889506181,0.25456621,96310.0,96259.0,0.54063488]
[1739889506390,0.0013408,96260.0,96259.0,0.54353485]
[1739889507250,0.0013408,96260.0,96259.0,0.5406343]
[1739889507460,0.0013408,96260.0,96259.0,0.3906343]
[1739889507671,0.0003408,96260.0,96259.0,0.00870165]
[1739889507880,0.1561678,96260.0,96259.0,0.00870165]